bitfinex-derivatives/quotes_BTCF0:USTF0_20240829
["timestamp","ask_amount","ask_price","bid_price","bid_amount"]
[1724949410098,0.16661033,60607.0,60606.0,2.0642999]
[1724949410394,0.22862012,60611.0,60610.0,0.16493]
[1724949410594,0.17800608,60611.0,60610.0,0.16493]
[1724949410800,0.17800608,60612.0,60611.0,0.164928]
[1724949411005,0.00024741,60615.0,60614.0,0.08246]
[1724949411298,0.00024741,60615.0,60614.0,0.16492]
[1724949411695,0.00024741,60615.0,60614.0,0.65984]
[1724949412701,0.00024741,60615.0,60614.0,1.3433]
[1724949412896,0.00024741,60615.0,60614.0,0.7433]
[1724949413695,4.1e-07,60615.0,60614.0,1.7051]
[1724949413898,4.1e-07,60615.0,60614.0,2.0651]
[1724949414201,4.1e-07,60615.0,60614.0,1.98264]
[1724949414393,4.1e-07,60615.0,60614.0,1.38264]
[1724949414589,4.1e-07,60615.0,60614.0,0.88772]
[1724949416897,4.1e-07,60615.0,60614.0,1.38264]
[1724949418099,4.1e-07,60615.0,60614.0,1.4651]
[1724949418592,4.1e-07,60615.0,60614.0,2.1143245]
[1724949418792,0.00024741,60621.0,60620.0,0.247356]
[1724949419003,0.00024741,60621.0,60620.0,1.208156]
[1724949419195,0.00024741,60621.0,60620.0,1.703036]
[1724949419702,0.00024741,60621.0,60620.0,1.103036]
[1724949420101,0.00024741,60621.0,60620.0,1.393036]
[1724949420302,0.00024741,60621.0,60620.0,2.08967804]
[1724949420504,0.0038,60633.0,60632.0,0.082435]
[1724949420698,0.0462,60636.0,60631.0,0.3608]
[1724949420901,0.0462,60636.0,60635.0,0.454862]
[1724949421094,0.01312955,60642.0,60641.0,0.082423]
[1724949421297,0.01312955,60642.0,60641.0,0.09070573]
[1724949421796,0.128621,60643.0,60642.0,0.082422]
[1724949423002,0.128621,60643.0,60642.0,0.083422]
[1724949423996,1.14092,60643.0,60635.0,0.00024741]
[1724949424209,0.16486,60636.0,60635.0,0.00024741]
[1724949424506,1.34105,60636.0,60635.0,0.00024741]
[1724949424706,1.34105,60636.0,60627.0,0.082442]
[1724949424707,0.082441,60628.0,60627.0,0.082442]
[1724949425318,0.0484,60630.0,60629.0,0.082439]
[1724949425508,0.129838,60630.0,60629.0,0.082439]
[1724949425706,0.17020574,60630.0,60629.0,0.082439]
[1724949426215,0.27586459,60630.0,60629.0,0.082439]
[1724949426415,0.16920574,60630.0,60629.0,0.082439]
[1724949426712,0.082441,60628.0,60627.0,0.001]
[1724949426905,0.24432326,60628.0,60627.0,0.001]
[1724949427219,0.17340696,60628.0,60627.0,0.001]
[1724949427404,0.12180874,60628.0,60627.0,0.001]
[1724949428004,0.12180874,60628.0,60627.0,0.083442]
[1724949428205,0.12180874,60628.0,60627.0,0.084442]
[1724949428710,0.12080874,60628.0,60627.0,0.083442]
[1724949429417,1.57844874,60628.0,60627.0,0.002]
[1724949429605,0.082446,60624.0,60609.0,0.36]
[1724949429917,0.12889573,60614.0,60609.0,0.36]
[1724949430215,0.3608,60619.0,60609.0,0.36]
[1724949430216,0.082458,60616.0,60615.0,0.082457]
[1724949430407,0.0403792,60616.0,60615.0,0.082457]
[1724949431910,0.0403792,60616.0,60615.0,0.164915]
[1724949432112,0.18659594,60616.0,60615.0,0.164915]
[1724949432415,0.18659594,60616.0,60615.0,0.524915]
[1724949432416,0.0403792,60616.0,60615.0,0.524915]
[1724949432804,0.00024741,60622.0,60615.0,0.803257]
[1724949433010,0.00024741,60622.0,60621.0,0.44325]
[1724949433908,0.00424741,60622.0,60621.0,0.5257]
[1724949434416,0.00424741,60622.0,60621.0,0.5267]
[1724949434914,0.00275259,60622.0,60621.0,0.60915]
[1724949435410,0.3608,60630.0,60629.0,0.082439]
[1724949436618,0.3638,60630.0,60629.0,0.083439]
[1724949436917,0.003,60630.0,60629.0,0.084439]
[1724949437909,0.446238,60630.0,60629.0,0.002]
[1724949438221,0.3638,60630.0,60629.0,0.084439]
[1724949438623,0.003,60630.0,60629.0,0.084439]
[1724949439716,0.085438,60630.0,60629.0,0.084439]
[1724949441003,0.446238,60630.0,60629.0,0.002]
[1724949441204,0.446238,60630.0,60623.0,0.00024741]
[1724949441205,0.247338,60624.0,60623.0,0.00024741]
[1724949441406,0.525692,60624.0,60623.0,0.00024741]
[1724949441618,1.620532,60624.0,60623.0,0.00024741]
[1724949441819,5.390532,60624.0,60623.0,0.00024741]
[1724949442117,4.790532,60624.0,60623.0,0.00024741]
[1724949442816,4.792532,60624.0,60623.0,0.00124741]
[1724949443017,4.710086,60624.0,60623.0,0.00124741]
[1724949443321,4.710086,60624.0,60623.0,0.00224741]
[1724949443505,0.445246,60624.0,60623.0,0.00224741]
[1724949443712,0.002,60624.0,60623.0,0.08469541]
[1724949445514,0.002,60624.0,60623.0,0.09780506]
[1724949447412,0.002,60624.0,60623.0,0.08469541]
[1724949448524,0.49684,60624.0,60623.0,0.08469541]
[1724949448916,0.49684,60624.0,60623.0,0.00224741]
[1724949448917,0.744178,60624.0,60623.0,0.00224741]
[1724949449113,1.634178,60624.0,60623.0,0.00224741]
[1724949449419,0.082453,60620.0,60608.0,0.082468]
[1724949449623,0.082453,60620.0,60596.0,0.5078]
[1724949449624,0.082476,60603.0,60602.0,0.082476]
[1724949449823,0.48365848,60603.0,60602.0,0.082476]
[1724949450125,0.40118248,60603.0,60602.0,0.082476]
[1724949450314,0.04038248,60603.0,60602.0,0.082476]
[1724949450515,0.13000725,60603.0,60602.0,0.082476]
[1724949450724,0.13000725,60605.0,60599.0,0.29]
[1724949450923,0.49080725,60605.0,60604.0,0.082473]
[1724949451118,0.40118494,60605.0,60604.0,0.082473]
[1724949451324,0.53427907,60605.0,60604.0,0.082473]
[1724949451620,0.48365694,60605.0,60604.0,0.082473]
[1724949452325,0.53428012,60605.0,60604.0,0.082473]
[1724949452527,0.68068162,60605.0,60604.0,0.082473]
[1724949453128,0.080475,60603.0,60602.0,0.004]
[1724949453422,0.11685994,60603.0,60602.0,0.004]
[1724949453719,0.28893213,60603.0,60602.0,0.004]
[1724949453925,0.29723494,60603.0,60602.0,0.004]
[1724949454317,0.29723494,60603.0,60602.0,0.01]
[1724949454516,0.70979994,60603.0,60602.0,0.01]
[1724949454813,0.21475994,60603.0,60602.0,0.01]
[1724949455216,0.076475,60603.0,60602.0,0.01]
[1724949455826,0.076475,60603.0,60602.0,0.004]
[1724949456016,0.077475,60603.0,60602.0,0.004]
[1724949456329,0.082478,60601.0,60600.0,0.082479]
[1724949457733,0.082478,60601.0,60600.0,0.083479]
[1724949458629,0.3608,60605.0,60600.0,0.001]
[1724949458829,0.443272,60605.0,60604.0,0.082473]
[1724949460328,0.448272,60605.0,60604.0,0.082473]
[1724949460832,0.451272,60605.0,60604.0,0.082473]
[1724949461328,0.164966,60597.0,60596.0,0.00024741]
[1724949461634,0.525766,60597.0,60596.0,0.00024741]
[1724949462523,1.703329,60597.0,60596.0,0.004]
[1724949463025,1.7164189,60597.0,60596.0,0.004]
[1724949464519,1.7164189,60597.0,60590.0,0.00024741]
[1724949464520,0.164982,60591.0,60590.0,0.00024741]
[1724949464716,0.082499,60586.0,60578.0,0.082508]
[1724949464927,0.082507,60579.0,60578.0,0.0952832]
[1724949465125,0.081507,60579.0,60578.0,0.082508]
[1724949465827,0.079507,60579.0,60578.0,0.082508]
[1724949466423,0.080507,60579.0,60578.0,0.096508]
[1724949466620,0.080507,60579.0,60578.0,0.109508]
[1724949468529,0.081507,60579.0,60578.0,0.110508]
[1724949471934,0.002,60579.0,60578.0,0.193017]
[1724949472126,0.002,60579.0,60578.0,0.247017]
[1724949472327,0.002,60579.0,60578.0,0.164508]
[1724949473435,0.084507,60579.0,60578.0,0.110508]
[1724949475244,0.527814,60579.0,60578.0,0.028]
[1724949475430,0.445307,60579.0,60578.0,0.028]
[1724949476934,0.3628,60579.0,60578.0,0.110509]
[1724949477637,0.3628,60579.0,60578.0,0.193018]
[1724949477853,0.3628,60579.0,60578.0,0.553818]
[1724949477854,0.002,60579.0,60578.0,0.553818]
[1724949478039,0.002,60579.0,60578.0,1.131567]
[1724949478433,0.002,60579.0,60578.0,1.049058]
[1724949478627,0.002,60579.0,60578.0,0.553818]
[1724949478839,0.002,60579.0,60578.0,0.471309]
[1724949479137,0.002,60579.0,60578.0,0.553818]
[1724949480230,0.002,60579.0,60578.0,0.636327]
[1724949480431,0.002,60579.0,60578.0,1.131567]
[1724949481036,0.00024741,60585.0,60584.0,0.165002]
[1724949481238,0.0038,60597.0,60596.0,0.082484]
[1724949481442,0.0038,60597.0,60585.0,0.082499]
[1724949481443,0.49067746,60600.0,60597.0,0.082483]
[1724949481731,0.04039412,60599.0,60598.0,0.082482]
[1724949483041,0.008,60599.0,60598.0,0.083482]
[1724949483239,0.04839139,60599.0,60598.0,0.083482]
[1724949483636,0.008,60599.0,60598.0,0.083482]
[1724949484535,0.008,60599.0,60598.0,0.165964]
[1724949484735,0.013,60599.0,60598.0,0.218564]
[1724949485139,0.013,60599.0,60598.0,0.31372427]
[1724949485335,0.00050518,60599.0,60598.0,1.40880427]
[1724949485537,1.8e-07,60599.0,60598.0,1.40880427]
[1724949485941,0.00024741,60605.0,60604.0,0.454946]
[1724949486241,0.00024741,60605.0,60604.0,0.82390859]
[1724949486440,0.00024741,60605.0,60604.0,1.31890859]
[1724949486641,0.00024741,60605.0,60604.0,0.82390859]
[1724949487549,4.1e-07,60605.0,60604.0,2.00138159]
[1724949489049,4.1e-07,60605.0,60604.0,2.00238159]
[1724949489234,4.1e-07,60605.0,60604.0,2.00338159]
[1724949489644,4.1e-07,60605.0,60604.0,2.00238159]
[1724949489952,4.1e-07,60605.0,60604.0,0.82490859]
[1724949490149,4.1e-07,60605.0,60604.0,0.45243559]
[1724949490349,4.1e-07,60605.0,60604.0,0.445273]
[1724949490739,4.1e-07,60605.0,60604.0,0.45335528]
[1724949491349,0.08247241,60605.0,60604.0,0.3628]
[1724949491652,0.44327241,60605.0,60604.0,0.002]
[1724949494141,0.52574441,60605.0,60604.0,0.002]
[1724949495749,0.44327241,60605.0,60604.0,0.002]
[1724949496143,0.44327241,60605.0,60604.0,0.084473]
[1724949496547,4.1e-07,60605.0,60604.0,0.084473]
[1724949499441,4.1e-07,60605.0,60604.0,0.456946]
[1724949499846,4.1e-07,60605.0,60604.0,1.634419]
[1724949501351,0.0471,60621.0,60604.0,1.634419]
[1724949501352,0.0471,60621.0,60616.0,0.164914]
[1724949501545,0.474578,60625.0,60624.0,0.082446]
[1724949501746,0.3608,60625.0,60624.0,0.082446]
[1724949503352,0.3638,60625.0,60624.0,0.083446]
[1724949504239,0.446245,60625.0,60624.0,0.083446]
[1724949504651,0.446245,60625.0,60624.0,0.001]
[1724949504948,0.446245,60625.0,60624.0,0.002]
[1724949504949,0.450245,60625.0,60624.0,0.002]
[1724949505545,0.53269,60625.0,60624.0,0.002]
[1724949506046,0.53269,60625.0,60608.0,0.086268]
[1724949506047,0.082467,60609.0,60608.0,0.0038]
[1724949506249,0.3608,60611.0,60603.0,0.082473]
[1724949506448,0.3608,60606.0,60603.0,0.082473]
[1724949507048,0.082473,60604.0,60603.0,0.082473]
[1724949507249,0.080473,60604.0,60603.0,0.082473]
[1724949507559,0.3608,60606.0,60600.0,0.01275308]
[1724949507758,3.905148,60608.0,60607.0,0.082469]
[1724949507951,3.904268,60608.0,60607.0,0.082469]
[1724949509350,3.910268,60608.0,60607.0,0.083469]
[1724949509746,3.910268,60608.0,60607.0,0.001]
[1724949509951,0.082478,60601.0,60600.0,0.001]
[1724949510248,0.443278,60601.0,60600.0,0.001]
[1724949510654,0.08148,60599.0,60598.0,0.00024741]
[1724949511060,0.08148,60599.0,60598.0,0.08272941]
[1724949511451,0.08048,60599.0,60598.0,0.08272941]
[1724949511761,0.3668,60601.0,60600.0,0.082479]
[1724949511962,0.449278,60601.0,60600.0,0.082479]
[1724949512462,0.456278,60601.0,60600.0,0.083479]
[1724949512857,0.450278,60601.0,60600.0,0.083479]
[1724949513763,0.457278,60601.0,60600.0,0.084479]
[1724949514372,0.096478,60601.0,60600.0,0.084479]
[1724949514755,0.096478,60601.0,60600.0,0.002]
[1724949514967,0.082495,60591.0,60590.0,0.082492]
[1724949516564,0.082495,60591.0,60590.0,0.085492]
[1724949516772,0.082495,60591.0,60590.0,0.089492]
[1724949517768,0.082495,60591.0,60590.0,0.006]
[1724949517968,0.164998,60585.0,60584.0,0.00024741]
[1724949518169,0.525798,60585.0,60584.0,0.00024741]
[1724949518561,0.523798,60585.0,60584.0,0.00024741]
[1724949519168,0.574998,60585.0,60584.0,0.00924741]
[1724949519582,0.082509,60578.0,60577.0,0.082509]
[1724949519768,0.082514,60574.0,60573.0,0.082515]
[1724949519967,0.082518,60571.0,60570.0,0.02134711]
[1724949520276,0.082518,60571.0,60565.0,0.0482]
[1724949520277,0.08252,60570.0,60565.0,0.0482]
[1724949520668,0.08252,60570.0,60569.0,0.08252]
[1724949520974,0.06852,60570.0,60569.0,0.08252]
[1724949521364,0.36104762,60574.0,60565.0,0.06895356]
[1724949521568,0.08276162,60574.0,60573.0,0.082516]
[1724949521877,0.07876162,60574.0,60573.0,0.082516]
[1724949522582,0.3608,60575.0,60565.0,0.06895356]
[1724949522583,0.082521,60570.0,60569.0,0.08252]
[1724949522767,0.082521,60570.0,60567.0,0.082524]
[1724949522768,0.082524,60568.0,60567.0,0.082524]
[1724949524179,0.093524,60568.0,60567.0,0.082524]
[1724949524974,0.082525,60566.0,60565.0,0.00815365]
[1724949525173,0.082527,60565.0,60564.0,0.082527]
[1724949525580,0.443327,60565.0,60564.0,0.00838348]
[1724949525875,0.443327,60565.0,60558.0,0.0479]
[1724949525876,0.082528,60564.0,60563.0,0.082529]
[1724949526571,0.082531,60562.0,60561.0,0.00834378]
[1724949526768,0.082531,60562.0,60561.0,0.09087578]
[1724949527671,0.3688,60565.0,60564.0,0.082528]
[1724949527881,0.3788,60565.0,60564.0,0.082528]
[1724949528474,0.3688,60565.0,60564.0,0.082528]
[1724949529180,0.3708,60565.0,60564.0,0.082528]
[1724949529975,0.36104762,60568.0,60567.0,0.165048]
[1724949530175,0.00024762,60568.0,60567.0,0.765048]
[1724949530394,0.00024762,60568.0,60567.0,1.342892]
[1724949531376,0.01224762,60568.0,60567.0,1.342892]
[1724949531779,0.02324762,60568.0,60567.0,1.342892]
[1724949533379,0.02324762,60568.0,60567.0,1.35558388]
[1724949535667,0.02324762,60568.0,60567.0,0.75558388]
[1724949535883,0.02324762,60568.0,60567.0,0.09521588]
[1724949537178,0.02324762,60568.0,60567.0,0.17773988]
[1724949540680,0.02324762,60568.0,60567.0,0.26026388]
[1724949541284,0.02324762,60568.0,60567.0,0.17773988]
[1724949542084,0.02324762,60568.0,60567.0,0.09521588]
[1724949542284,0.02324762,60568.0,60567.0,0.26026388]
[1724949542585,0.00350539,60568.0,60567.0,1.35558388]
[1724949542889,0.00350539,60568.0,60567.0,0.8048506]
[1724949543082,0.00350539,60568.0,60567.0,1.4048506]
[1724949543491,0.00350539,60568.0,60567.0,1.35558388]
[1724949543672,0.0038,60578.0,60568.0,0.577802]
[1724949543875,0.4077,60599.0,60597.0,0.082482]
[1724949544085,0.082483,60597.0,60583.0,0.29]
[1724949544384,0.3608,60594.0,60591.0,0.08249]
[1724949544687,0.443288,60594.0,60591.0,0.08249]
[1724949545587,0.457288,60594.0,60592.0,0.082489]
[1724949545887,0.457288,60594.0,60587.0,0.082495]
[1724949545888,0.3748,60594.0,60587.0,0.082495]
[1724949546085,0.3608,60588.0,60586.0,0.00024762]
[1724949546387,0.443296,60588.0,60586.0,0.00024762]
[1724949546582,0.3608,60588.0,60587.0,0.082497]
[1724949547588,0.082491,60592.0,60589.0,0.082493]
[1724949548580,0.082492,60590.0,60589.0,0.082493]
[1724949549193,0.082492,60590.0,60589.0,0.083493]
[1724949549776,0.082492,60590.0,60586.0,0.00024762]
[1724949549777,1.09512,60590.0,60586.0,0.00024762]
[1724949549985,0.6508,60587.0,60586.0,0.00024762]
[1724949550181,0.082505,60581.0,60580.0,0.3213]
[1724949550495,0.082509,60578.0,60577.0,0.082508]
[1724949550984,0.081509,60578.0,60577.0,0.082508]
[1724949551383,0.080509,60578.0,60577.0,0.082508]
[1724949552393,0.099509,60578.0,60577.0,0.084508]
[1724949553080,0.182018,60578.0,60577.0,0.002]
[1724949553283,0.27308018,60578.0,60577.0,0.002]
[1724949554084,0.19057118,60578.0,60577.0,0.002]
[1724949554284,0.19057213,60578.0,60577.0,0.002]
[1724949558490,0.11006313,60578.0,60577.0,0.08451]
[1724949558684,0.05941086,60578.0,60577.0,0.16702]
[1724949559591,8.6e-07,60578.0,60577.0,1.10557]
[1724949559795,0.14701343,60583.0,60582.0,0.082503]
[1724949559796,0.13071916,60583.0,60582.0,0.082503]
[1724949560192,0.13096678,60584.0,60583.0,0.082502]
[1724949560401,0.00024762,60584.0,60583.0,0.537506]
[1724949560589,0.00024762,60584.0,60583.0,1.132906]
[1724949560795,0.00024762,60584.0,60583.0,1.732906]
[1724949561800,0.00824762,60584.0,60583.0,1.733906]
[1724949562200,0.02224762,60584.0,60583.0,1.733906]
[1724949563995,6.2e-07,60584.0,60583.0,1.733906]
[1724949564300,0.09805879,60610.0,60594.0,0.082486]
[1724949564490,0.133064,60611.0,60609.0,0.082466]
[1724949564697,3.903064,60611.0,60609.0,0.082466]
[1724949564897,3.8206,60611.0,60605.0,0.0906612]
[1724949565191,0.082467,60609.0,60606.0,0.08247]
[1724949565501,0.3598,60607.0,60606.0,0.08247]
[1724949565894,0.082467,60609.0,60607.0,0.082468]
[1724949566199,0.082467,60609.0,60604.0,0.00024762]
[1724949566200,0.082467,60609.0,60608.0,0.082468]
[1724949566394,4.1914,60611.0,60609.0,0.082466]
[1724949566594,4.1914,60611.0,60604.0,0.00024762]
[1724949566801,0.3708,60611.0,60610.0,0.082465]
[1724949568091,0.3608,60611.0,60610.0,0.083465]
[1724949568406,0.45180643,60611.0,60610.0,0.083465]
[1724949568704,0.66304578,60611.0,60610.0,0.083465]
[1724949568905,0.53427099,60611.0,60610.0,0.083465]
[1724949569094,0.63121516,60611.0,60610.0,0.084465]
[1724949569296,0.45180699,60611.0,60610.0,0.084465]
[1724949569492,0.45180527,60611.0,60610.0,0.084465]
[1724949569801,0.09100527,60611.0,60610.0,0.09740443]
[1724949570106,0.04038518,60611.0,60610.0,0.09740443]
[1724949570302,0.03038518,60611.0,60610.0,0.09740443]
[1724949570504,0.16303257,60612.0,60611.0,0.082464]
[1724949570803,0.16328019,60616.0,60615.0,0.082458]
[1724949572298,0.00024762,60616.0,60615.0,0.083458]
[1724949572992,0.00024762,60616.0,60615.0,0.084458]
[1724949573199,0.17956723,60616.0,60615.0,0.084458]
[1724949573400,0.00024762,60616.0,60615.0,0.084458]
[1724949574101,0.17943659,60616.0,60615.0,0.084458]
[1724949574297,0.16309396,60616.0,60615.0,0.084458]
[1724949574499,0.00024762,60616.0,60615.0,0.084458]
[1724949578209,0.00024762,60616.0,60615.0,0.166916]
[1724949579307,0.35304762,60619.0,60618.0,0.082454]
[1724949580906,0.35304762,60619.0,60618.0,0.083454]
[1724949581616,0.35304762,60619.0,60618.0,0.084454]
[1724949585312,0.35304762,60619.0,60618.0,0.09760887]
[1724949587020,0.51795362,60619.0,60618.0,0.002]
[1724949587309,0.082468,60608.0,60607.0,0.3213]
[1724949587518,0.082468,60608.0,60607.0,0.32958328]
[1724949587908,3.852468,60608.0,60607.0,0.34220918]
[1724949588407,0.082468,60608.0,60607.0,0.34320918]
[1724949588714,0.082468,60608.0,60607.0,0.34420918]
[1724949588914,0.082468,60608.0,60607.0,0.42667818]
[1724949589116,0.082468,60608.0,60607.0,0.41405228]
[1724949592823,0.082468,60608.0,60607.0,0.09275228]
[1724949593018,0.3608,60610.0,60609.0,0.082467]
[1724949594308,0.3608,60610.0,60609.0,0.083467]
[1724949594517,0.3608,60610.0,60609.0,0.084467]
[1724949594821,0.443265,60610.0,60609.0,0.084467]
[1724949595119,1.45576,60610.0,60604.0,0.00024762]
[1724949595311,0.525744,60605.0,60604.0,0.00024762]
[1724949595511,0.082473,60604.0,60603.0,0.082475]
[1724949595807,0.183373,60604.0,60603.0,0.082475]
[1724949596818,0.08248,60601.0,60600.0,0.082478]
[1724949597913,0.08048,60601.0,60600.0,0.082478]
[1724949598418,0.08048,60601.0,60600.0,0.083478]
[1724949598614,0.08048,60601.0,60600.0,0.084478]
[1724949599120,0.08048,60601.0,60597.0,0.09590667]
[1724949599309,0.3608,60598.0,60597.0,0.09590667]
[1724949599510,0.443282,60598.0,60597.0,0.10428124]
[1724949599917,0.3608,60598.0,60588.0,0.04935339]
[1724949600130,0.082498,60586.0,60585.0,0.082498]
[1724949600425,0.082498,60586.0,60585.0,0.09092457]
[1724949601013,0.082498,60586.0,60585.0,0.082498]
[1724949601215,0.079503,60583.0,60582.0,0.082502]
[1724949601416,0.440303,60583.0,60582.0,0.082502]
[1724949601819,4.209303,60583.0,60582.0,0.082502]
[1724949602021,0.439303,60583.0,60582.0,0.082502]
[1724949602220,0.443302,60583.0,60582.0,0.082503]
[1724949602411,0.442302,60583.0,60582.0,0.082503]
[1724949602613,0.443302,60583.0,60582.0,0.083503]
[1724949603625,0.3608,60583.0,60582.0,0.083503]
[1724949604420,0.012,60583.0,60582.0,0.527806]
[1724949604627,0.00325714,60583.0,60582.0,1.175606]
[1724949605218,0.00325714,60583.0,60582.0,1.258109]
[1724949605414,1.4e-07,60583.0,60582.0,1.858109]
[1724949605619,0.3608,60602.0,60591.0,0.082491]
[1724949605923,0.3608,60597.0,60591.0,0.09069469]
[1724949606520,0.3608,60597.0,60591.0,0.17318569]
[1724949606824,0.3608,60597.0,60591.0,0.09069469]
[1724949607331,0.3608,60597.0,60591.0,0.17318569]
[1724949607629,0.3608,60597.0,60591.0,0.09069469]
[1724949608128,0.00924762,60592.0,60591.0,0.09169469]
[1724949608331,0.02324762,60592.0,60591.0,0.09269469]
[1724949610427,0.02324762,60592.0,60591.0,0.17518569]
[1724949610623,0.02324762,60592.0,60591.0,0.18819981]
[1724949611416,0.02324762,60592.0,60591.0,0.10570881]
[1724949611930,0.02324762,60592.0,60591.0,0.18819981]
[1724949612519,0.02324762,60592.0,60591.0,0.10570881]
[1724949612831,0.02324762,60592.0,60591.0,0.18819981]
[1724949614029,0.02324762,60592.0,60591.0,0.10570881]
[1724949617435,0.39573762,60592.0,60591.0,0.002]
[1724949617732,0.39573762,60592.0,60580.0,0.082505]
[1724949617733,0.082505,60581.0,60580.0,0.082505]
[1724949617934,0.082506,60580.0,60579.0,0.08275462]
[1724949618333,0.082508,60579.0,60565.0,0.0038]
[1724949618531,0.08252,60570.0,60569.0,0.08252]
[1724949618932,0.082527,60565.0,60559.0,0.01299162]
[1724949619129,0.082527,60565.0,60557.0,0.3608]
[1724949619130,0.082528,60564.0,60557.0,0.3608]
[1724949619329,0.3608,60558.0,60554.0,0.0085272]
[1724949619538,0.3608,60558.0,60557.0,0.082537]
[1724949619935,0.3548,60558.0,60557.0,0.082537]
[1724949620236,0.3608,60561.0,60554.0,0.02120594]
[1724949620933,0.3608,60556.0,60555.0,0.08254]
[1724949621130,0.3608,60556.0,60549.0,0.04019091]
[1724949621327,0.3608,60556.0,60549.0,0.00819107]
[1724949621529,0.3548,60556.0,60547.0,0.37386277]
[1724949621936,0.3548,60556.0,60555.0,0.08254]
[1724949622726,0.3558,60556.0,60555.0,0.08254]
[1724949623234,0.3558,60556.0,60555.0,0.09154]
[1724949623436,0.3568,60556.0,60555.0,0.09154]
[1724949623942,0.3533272,60568.0,60563.0,0.082528]
[1724949624134,0.3533272,60568.0,60564.0,0.082527]
[1724949624439,0.4358502,60568.0,60564.0,0.082527]
[1724949624741,0.3533272,60568.0,60564.0,0.082527]
[1724949625535,0.3533272,60568.0,60565.0,0.082527]
[1724949625536,0.082525,60566.0,60565.0,0.082527]
[1724949627044,0.085525,60566.0,60565.0,0.082527]
[1724949627639,0.088525,60566.0,60565.0,0.082527]
[1724949628144,0.006,60566.0,60565.0,0.082527]
[1724949629956,0.006,60566.0,60565.0,0.165054]
[1724949636548,0.006,60566.0,60565.0,0.247581]
[1724949636739,0.006,60566.0,60565.0,0.608381]
[1724949636951,0.006,60566.0,60565.0,0.659781]
[1724949637946,0.006,60566.0,60565.0,0.247581]
[1724949638336,0.006,60566.0,60565.0,2.076228]
[1724949639454,0.00024762,60572.0,60571.0,0.247554]
[1724949640656,0.00924762,60572.0,60571.0,0.248554]
[1724949641341,0.0523,60585.0,60571.0,0.248554]
[1724949641342,0.0523,60585.0,60584.0,0.082501]
[1724949641545,0.3608,60589.0,60588.0,0.082495]
[1724949641744,0.3608,60595.0,60585.0,0.443299]
[1724949642050,0.3608,60595.0,60586.0,0.0993]
[1724949642241,0.3608,60595.0,60594.0,0.082487]
[1724949642442,0.00024762,60597.0,60596.0,0.082484]
[1724949643642,0.03210891,60597.0,60596.0,0.082484]
[1724949643844,0.08450068,60597.0,60596.0,0.083484]
[1724949645047,0.08450068,60597.0,60596.0,0.084484]
[1724949646456,0.14241921,60597.0,60596.0,0.084484]
[1724949646659,0.08450068,60597.0,60596.0,0.166968]
[1724949646847,0.08450068,60597.0,60596.0,0.46957772]
[1724949647047,0.14243311,60597.0,60596.0,0.46957772]
[1724949647255,0.1742944,60597.0,60596.0,0.46957772]
[1724949647457,0.14243311,60597.0,60596.0,0.46957772]
[1724949647656,0.08449151,60597.0,60596.0,0.46957772]
[1724949650247,0.13018549,60601.0,60596.0,1.39968972]
[1724949650462,2.8e-07,60600.0,60599.0,0.32992]
[1724949650652,0.3608,60609.0,60599.0,0.32992]
[1724949650653,0.3608,60609.0,60603.0,0.082475]
[1724949650956,0.3608,60609.0,60608.0,0.164936]
[1724949651460,0.00024762,60615.0,60613.0,0.082461]
[1724949651761,0.00024762,60615.0,60614.0,0.81572]
[1724949652552,0.00024762,60615.0,60614.0,0.82384944]
[1724949653159,0.00124762,60615.0,60614.0,0.82484944]
[1724949653358,0.00124762,60615.0,60614.0,1.31976944]
[1724949653661,0.05,60627.0,60626.0,0.082444]
[1724949654753,0.05,60627.0,60622.0,0.082448]
[1724949654954,0.053,60627.0,60626.0,0.001]
[1724949655161,0.135442,60627.0,60626.0,0.001]
[1724949655850,0.135442,60627.0,60626.0,0.002]
[1724949656759,0.135442,60627.0,60626.0,0.083444]
[1724949657559,0.132442,60627.0,60626.0,0.083444]
[1724949657755,0.17581743,60627.0,60626.0,0.002]
[1724949658663,0.30600292,60627.0,60626.0,0.002]
[1724949658961,0.17581743,60627.0,60626.0,0.002]
[1724949659861,3.94581743,60627.0,60626.0,0.002]
[1724949660664,3.97766635,60627.0,60626.0,0.084444]
[1724949660965,3.97766438,60627.0,60626.0,0.084444]
[1724949661355,3.97766438,60627.0,60626.0,0.07599961]
[1724949661553,0.08484776,60627.0,60626.0,0.24088761]
[1724949661855,0.03484776,60627.0,60626.0,0.53088761]
[1724949663059,0.03484776,60627.0,60626.0,0.53188761]
[1724949663663,0.03484776,60627.0,60626.0,0.07699961]
[1724949664054,0.03584776,60627.0,60626.0,0.07799961]
[1724949664561,0.03484776,60627.0,60626.0,0.07699961]
[1724949664863,0.004,60627.0,60626.0,0.07799961]
[1724949665361,0.03584328,60627.0,60626.0,0.07799961]
[1724949665761,0.00024741,60633.0,60626.0,0.07799961]
[1724949665966,0.35588741,60634.0,60633.0,0.082434]
[1724949666169,0.35504741,60634.0,60633.0,0.082434]
[1724949667063,0.082424,60641.0,60631.0,0.00810719]
[1724949667064,0.00015733,60640.0,60637.0,0.082429]
[1724949667271,0.00015733,60640.0,60634.0,0.082433]
[1724949667272,0.00015733,60640.0,60639.0,0.082426]
[1724949668864,0.00115733,60640.0,60639.0,0.083426]
[1724949669462,0.00115733,60640.0,60639.0,0.09907705]
[1724949669653,0.00115733,60640.0,60639.0,0.10007705]
[1724949669866,0.16600533,60640.0,60639.0,0.002]
[1724949670071,0.16600533,60640.0,60632.0,0.00024741]
[1724949670072,0.082434,60633.0,60632.0,0.08268241]
[1724949670267,0.082434,60633.0,60632.0,0.00024741]
[1724949670568,0.164868,60633.0,60632.0,0.00024741]
[1724949670758,0.082434,60633.0,60632.0,0.00024741]
[1724949670959,0.164868,60633.0,60632.0,0.00024741]
[1724949671164,0.082434,60633.0,60632.0,0.00024741]
[1724949671369,0.082434,60633.0,60632.0,0.00124741]
[1724949671568,0.082434,60633.0,60632.0,0.08468241]